[Event "*** SCC Grand Prix: Titled Tuesday Blitz"]
[Site "Chess.com"]
[Date "2020.10.13"]
[Round "5"]
[White "zmeeed67"]
[Black "Roza_Idrisova"]
[Result "1-0"]
[WhiteElo "2352"]
[BlackElo "2161"]
[TimeControl "180+1"]
[EndTime "10:57:12 PDT"]
[Termination "zmeeed67 won on time"]

1. e4 {[%clk 0:03:00.9]} 1... c6 {[%clk 0:02:59.4]} 2. Nf3 {[%clk 0:02:59.6]}
2... d5 {[%clk 0:02:58.8]} 3. Nc3 {[%clk 0:02:59.6]} 3... a6 {[%clk 0:02:58.3]}
4. Be2 {[%clk 0:02:57.9]} 4... Bg4 {[%clk 0:02:56.1]} 5. h3 {[%clk 0:02:57.7]}
5... Bh5 {[%clk 0:02:55]} 6. O-O {[%clk 0:02:56.6]} 6... e6 {[%clk 0:02:54.6]}
7. d3 {[%clk 0:02:55.3]} 7... Nf6 {[%clk 0:02:54.3]} 8. Bg5 {[%clk 0:02:54.4]}
8... Be7 {[%clk 0:02:43.9]} 9. e5 {[%clk 0:02:39.4]} 9... Nfd7 {[%clk
0:02:43.3]} 10. Bf4 {[%clk 0:02:39.1]} 10... c5 {[%clk 0:02:39.9]} 11. Re1
{[%clk 0:02:25.4]} 11... Nc6 {[%clk 0:02:39]} 12. Nd2 {[%clk 0:02:11.5]} 12...
Bxe2 {[%clk 0:02:36.8]} 13. Rxe2 {[%clk 0:02:08.1]} 13... O-O {[%clk 0:02:36.4]}
14. Nf3 {[%clk 0:02:07.7]} 14... b5 {[%clk 0:02:32.8]} 15. Re1 {[%clk
0:02:06.5]} 15... b4 {[%clk 0:02:32.6]} 16. Nb1 {[%clk 0:02:06.4]} 16... a5
{[%clk 0:02:28.8]} 17. Nbd2 {[%clk 0:02:06.3]} 17... Nb6 {[%clk 0:02:26.7]} 18.
Nf1 {[%clk 0:01:54.7]} 18... d4 {[%clk 0:02:24.6]} 19. Ng3 {[%clk 0:01:53]}
19... Nd5 {[%clk 0:02:23.7]} 20. Bd2 {[%clk 0:01:51.6]} 20... Qd7 {[%clk
0:02:14]} 21. Ne4 {[%clk 0:01:48]} 21... a4 {[%clk 0:01:59.5]} 22. Qe2 {[%clk
0:01:31.2]} 22... a3 {[%clk 0:01:58]} 23. b3 {[%clk 0:01:31]} 23... Nc3 {[%clk
0:01:48.1]} 24. Qf1 {[%clk 0:01:27.4]} 24... Nxe4 {[%clk 0:01:34.2]} 25. Rxe4
{[%clk 0:01:26.4]} 25... Rae8 {[%clk 0:01:29.6]} 26. Rae1 {[%clk 0:01:25]} 26...
Bd8 {[%clk 0:01:28.1]} 27. Rg4 {[%clk 0:01:24.2]} 27... Kh8 {[%clk 0:01:26.6]}
28. h4 {[%clk 0:01:22.1]} 28... Ne7 {[%clk 0:01:20.9]} 29. h5 {[%clk 0:01:14.1]}
29... Nf5 {[%clk 0:01:14.1]} 30. Rge4 {[%clk 0:01:13.8]} 30... h6 {[%clk
0:01:10.2]} 31. g4 {[%clk 0:01:12.5]} 31... Nh4 {[%clk 0:00:58.8]} 32. Nxh4
{[%clk 0:01:04]} 32... Bxh4 {[%clk 0:00:58]} 33. Qh3 {[%clk 0:01:04.2]} 33...
Bd8 {[%clk 0:00:55.7]} 34. f4 {[%clk 0:01:03.6]} 34... f5 {[%clk 0:00:50.5]} 35.
exf6 {[%clk 0:01:00.1]} 35... Bxf6 {[%clk 0:00:40.7]} 36. g5 {[%clk 0:00:56.2]}
36... hxg5 {[%clk 0:00:38.3]} 37. fxg5 {[%clk 0:00:55.8]} 37... Bd8 {[%clk
0:00:37.6]} 38. Rxe6 {[%clk 0:00:30.7]} 38... Rxe6 {[%clk 0:00:36.1]} 39. Rxe6
{[%clk 0:00:22.3]} 39... Qf7 {[%clk 0:00:34.9]} 40. Re2 {[%clk 0:00:18.1]} 40...
Bc7 {[%clk 0:00:20.9]} 41. h6 {[%clk 0:00:16.8]} 41... Kg8 {[%clk 0:00:18.7]}
42. hxg7 {[%clk 0:00:14.5]} 42... Qxg7 {[%clk 0:00:18.8]} 43. Qg2 {[%clk
0:00:14.5]} 43... Qf7 {[%clk 0:00:16.7]} 44. Rf2 {[%clk 0:00:14.4]} 44... Qxf2+
{[%clk 0:00:16.2]} 45. Qxf2 {[%clk 0:00:14.3]} 45... Rxf2 {[%clk 0:00:16.8]} 46.
Kxf2 {[%clk 0:00:14.9]} 46... Kf7 {[%clk 0:00:17.5]} 47. Kf3 {[%clk 0:00:15.4]}
47... Ke6 {[%clk 0:00:16.3]} 48. Kg4 {[%clk 0:00:15.7]} 48... Be5 {[%clk
0:00:15]} 49. Bf4 {[%clk 0:00:15.8]} 49... Bg7 {[%clk 0:00:14.7]} 50. Bc7 {[%clk
0:00:14.9]} 50... Bh8 {[%clk 0:00:14]} 51. Kh5 {[%clk 0:00:14.7]} 51... Kf5
{[%clk 0:00:12.3]} 52. Bd8 {[%clk 0:00:13.9]} 52... Bg7 {[%clk 0:00:11.8]} 53.
Be7 {[%clk 0:00:13.9]} 53... Ke6 {[%clk 0:00:11.1]} 54. Bxc5 {[%clk 0:00:13.8]}
54... Kf5 {[%clk 0:00:06.9]} 55. Bxb4 {[%clk 0:00:13.7]} 55... Kf4 {[%clk
0:00:06.4]} 56. Bxa3 {[%clk 0:00:13.4]} 56... Ke3 {[%clk 0:00:05.7]} 57. Bc5
{[%clk 0:00:12.5]} 57... Kd2 {[%clk 0:00:05.2]} 58. Kg6 {[%clk 0:00:12]} 58...
Be5 {[%clk 0:00:04.6]} 59. a4 {[%clk 0:00:11.8]} 59... Kxc2 {[%clk 0:00:04.5]}
60. Kf5 {[%clk 0:00:12.2]} 60... Bc7 {[%clk 0:00:01.4]} 61. g6 {[%clk
0:00:11.7]} 1-0

[Event "*** SCC Grand Prix: Titled Tuesday Blitz"]
[Site "Chess.com"]
[Date "2020.10.13"]
[Round "5"]
[White "crazy_but_lazy"]
[Black "kreonx"]
[Result "0-1"]
[WhiteElo "2490"]
[BlackElo "2362"]
[TimeControl "180+1"]
[EndTime "10:57:20 PDT"]
[Termination "kreonx won by resignation"]

1. d4 {[%clk 0:02:54.2]} 1... d5 {[%clk 0:02:58.9]} 2. Bf4 {[%clk 0:02:52.8]}
2... e6 {[%clk 0:02:55.4]} 3. e3 {[%clk 0:02:51.6]} 3... Bd6 {[%clk 0:02:53.9]}
4. Bxd6 {[%clk 0:02:49.3]} 4... Qxd6 {[%clk 0:02:53]} 5. Nf3 {[%clk 0:02:49.2]}
5... Nd7 {[%clk 0:02:48.7]} 6. Nbd2 {[%clk 0:02:44.9]} 6... e5 {[%clk
0:02:45.3]} 7. dxe5 {[%clk 0:02:44.8]} 7... Nxe5 {[%clk 0:02:45]} 8. Nxe5 {[%clk
0:02:45.7]} 8... Qxe5 {[%clk 0:02:45.2]} 9. c3 {[%clk 0:02:46.6]} 9... Nf6
{[%clk 0:02:37.8]} 10. Nf3 {[%clk 0:02:45.5]} 10... Qe7 {[%clk 0:02:32.1]} 11.
Be2 {[%clk 0:02:45.9]} 11... O-O {[%clk 0:02:26.8]} 12. O-O {[%clk 0:02:45.9]}
12... Bg4 {[%clk 0:02:15.2]} 13. Qb3 {[%clk 0:02:41.9]} 13... c6 {[%clk
0:02:13.4]} 14. h3 {[%clk 0:02:39.5]} 14... Bh5 {[%clk 0:02:06.4]} 15. a4 {[%clk
0:02:35.3]} 15... Ne4 {[%clk 0:02:00.2]} 16. a5 {[%clk 0:02:26.7]} 16... Bxf3
{[%clk 0:01:54.9]} 17. Bxf3 {[%clk 0:02:15.4]} 17... Nd2 {[%clk 0:01:54]} 18.
Qd1 {[%clk 0:02:11.6]} 18... Nxf1 {[%clk 0:01:52.4]} 19. Qxf1 {[%clk 0:02:12.5]}
19... a6 {[%clk 0:01:50]} 20. Ra4 {[%clk 0:02:11.4]} 20... f5 {[%clk 0:01:43.5]}
21. g3 {[%clk 0:02:10.8]} 21... Qc7 {[%clk 0:01:34.8]} 22. h4 {[%clk 0:02:08.7]}
22... Rae8 {[%clk 0:01:31.9]} 23. Qd3 {[%clk 0:02:03.5]} 23... Re7 {[%clk
0:01:23.1]} 24. Kg2 {[%clk 0:02:03.1]} 24... Rd8 {[%clk 0:01:20.3]} 25. Qxf5
{[%clk 0:02:00.3]} 25... Rf8 {[%clk 0:01:16.4]} 26. Qd3 {[%clk 0:01:57.3]} 26...
Ref7 {[%clk 0:01:14.2]} 27. Rf4 {[%clk 0:01:57.4]} 27... Rxf4 {[%clk 0:01:10.9]}
28. exf4 {[%clk 0:01:56]} 28... Qxa5 {[%clk 0:01:10.4]} 29. c4 {[%clk
0:01:54.8]} 29... dxc4 {[%clk 0:01:03]} 30. Qxc4+ {[%clk 0:01:54.8]} 30... Kh8
{[%clk 0:01:03]} 31. h5 {[%clk 0:01:55.4]} 31... Qb6 {[%clk 0:00:52.3]} 32. b3
{[%clk 0:01:42.3]} 32... h6 {[%clk 0:00:45.5]} 33. Qe6 {[%clk 0:01:41]} 33...
Qd8 {[%clk 0:00:40.9]} 34. Be4 {[%clk 0:01:36.7]} 34... Qf6 {[%clk 0:00:39.3]}
35. Qd7 {[%clk 0:01:35.2]} 35... Qf7 {[%clk 0:00:38.7]} 36. Qd3 {[%clk
0:01:28.6]} 36... Qxh5 {[%clk 0:00:35.8]} 37. Qd6 {[%clk 0:01:24.9]} 37... Qf7
{[%clk 0:00:33.4]} 38. f3 {[%clk 0:01:11.2]} 38... Re8 {[%clk 0:00:23.1]} 39. g4
{[%clk 0:01:03.7]} 39... Rf8 {[%clk 0:00:19.5]} 40. Kg3 {[%clk 0:00:59.6]} 40...
a5 {[%clk 0:00:16.9]} 41. g5 {[%clk 0:00:57.4]} 41... hxg5 {[%clk 0:00:13.9]}
42. fxg5 {[%clk 0:00:58.3]} 42... Re8 {[%clk 0:00:08.5]} 43. Qd2 {[%clk
0:00:37.4]} 43... Kg8 {[%clk 0:00:06.6]} 44. Qxa5 {[%clk 0:00:25.4]} 44... Qe7
{[%clk 0:00:06]} 45. Kg4 {[%clk 0:00:19.7]} 45... Qe6+ {[%clk 0:00:05.2]} 46.
Bf5 {[%clk 0:00:19.9]} 46... Qe5 {[%clk 0:00:05.1]} 47. Qd2 {[%clk 0:00:14.7]}
47... Kf8 {[%clk 0:00:03.4]} 48. b4 {[%clk 0:00:10.3]} 48... b6 {[%clk
0:00:02.4]} 49. Qd7 {[%clk 0:00:09.2]} 49... c5 {[%clk 0:00:01.9]} 50. b5 {[%clk
0:00:08.6]} 50... Qe7 {[%clk 0:00:01.6]} 51. Qd5 {[%clk 0:00:07.8]} 51... Rd8
{[%clk 0:00:01.7]} 52. Qb7 {[%clk 0:00:04.9]} 52... Qd6 {[%clk 0:00:02.2]} 53.
g6 {[%clk 0:00:04.3]} 53... Qd4+ {[%clk 0:00:02.4]} 54. Kh5 {[%clk 0:00:04.1]}
54... Qd5 {[%clk 0:00:02.1]} 55. Qxd5 {[%clk 0:00:01.6]} 55... Rxd5 {[%clk
0:00:03]} 56. Kg5 {[%clk 0:00:02.1]} 56... Rxf5+ {[%clk 0:00:03.3]} 57. Kxf5
{[%clk 0:00:02.4]} 57... Ke7 {[%clk 0:00:04.2]} 58. Ke5 {[%clk 0:00:02.9]} 58...
c4 {[%clk 0:00:04.3]} 59. f4 {[%clk 0:00:03.7]} 59... c3 {[%clk 0:00:03.8]} 60.
f5 {[%clk 0:00:04.6]} 60... c2 {[%clk 0:00:04.5]} 61. f6+ {[%clk 0:00:04.9]}
61... gxf6+ {[%clk 0:00:05.4]} 0-1

[Event "*** SCC Grand Prix: Titled Tuesday Blitz"]
[Site "Chess.com"]
[Date "2020.10.13"]
[Round "5"]
[White "blitzking1729"]
[Black "karwowskikacper"]
[Result "1-0"]
[WhiteElo "2546"]
[BlackElo "2338"]
[TimeControl "180+1"]
[EndTime "10:57:24 PDT"]
[Termination "blitzking1729 won by checkmate"]

1. d4 {[%clk 0:03:00.9]} 1... Nf6 {[%clk 0:02:56.2]} 2. Bf4 {[%clk 0:02:58.3]}
2... c5 {[%clk 0:02:53.1]} 3. e3 {[%clk 0:02:56.3]} 3... Qb6 {[%clk 0:02:48.1]}
4. Nc3 {[%clk 0:02:37.9]} 4... Qxb2 {[%clk 0:02:44]} 5. Nb5 {[%clk 0:02:35.4]}
5... Nd5 {[%clk 0:02:39]} 6. Rb1 {[%clk 0:02:19.1]} 6... Qxa2 {[%clk 0:02:37.7]}
7. Ra1 {[%clk 0:02:18.6]} 7... Qb2 {[%clk 0:02:37.5]} 8. Bxb8 {[%clk 0:01:34.3]}
8... Rxb8 {[%clk 0:02:33.4]} 9. Nf3 {[%clk 0:01:33.5]} 9... Nb4 {[%clk
0:02:21.8]} 10. Rc1 {[%clk 0:01:19.8]} 10... a6 {[%clk 0:02:16.3]} 11. Nc7+
{[%clk 0:01:09]} 11... Kd8 {[%clk 0:02:15.2]} 12. c3 {[%clk 0:01:09.2]} 12...
Kxc7 {[%clk 0:02:06]} 13. cxb4 {[%clk 0:01:07.9]} 13... Qxb4+ {[%clk 0:02:06.9]}
14. Nd2 {[%clk 0:01:07.8]} 14... d6 {[%clk 0:01:57.1]} 15. dxc5 {[%clk
0:01:06.1]} 15... dxc5 {[%clk 0:01:58]} 16. Rc4 {[%clk 0:01:05]} 16... Qa5
{[%clk 0:01:52.3]} 17. Qc1 {[%clk 0:01:03.2]} 17... e5 {[%clk 0:01:38.3]} 18.
Be2 {[%clk 0:00:55.1]} 18... Be6 {[%clk 0:01:35.4]} 19. Rc3 {[%clk 0:00:46.5]}
19... b5 {[%clk 0:01:10.4]} 20. O-O {[%clk 0:00:42]} 20... c4 {[%clk 0:01:04.7]}
21. Bxc4 {[%clk 0:00:33.6]} 21... bxc4 {[%clk 0:00:58.1]} 22. Nxc4 {[%clk
0:00:32.2]} 22... Bxc4 {[%clk 0:00:53.5]} 23. Rxc4+ {[%clk 0:00:33.1]} 23... Kb7
{[%clk 0:00:32.5]} 24. Qc2 {[%clk 0:00:27.6]} 24... Bd6 {[%clk 0:00:22.3]} 25.
Rd1 {[%clk 0:00:21.8]} 25... Rhd8 {[%clk 0:00:20.2]} 26. h3 {[%clk 0:00:18.9]}
26... Ka7 {[%clk 0:00:10.9]} 27. Qe4 {[%clk 0:00:17.7]} 27... Rb7 {[%clk
0:00:07.8]} 28. Rd5 {[%clk 0:00:16.3]} 28... Qb6 {[%clk 0:00:05.4]} 29. Kh2
{[%clk 0:00:15.2]} 29... g6 {[%clk 0:00:05.8]} 30. g3 {[%clk 0:00:14.2]} 30...
f5 {[%clk 0:00:06.1]} 31. Qd3 {[%clk 0:00:14]} 31... e4 {[%clk 0:00:06.6]} 32.
Qd1 {[%clk 0:00:14]} 32... Qb3 {[%clk 0:00:03.6]} 33. Qd4+ {[%clk 0:00:12]}
33... Qb6 {[%clk 0:00:03.4]} 34. Qd1 {[%clk 0:00:08.9]} 34... Bxg3+ {[%clk
0:00:03]} 35. Kxg3 {[%clk 0:00:08.5]} 35... Rxd5 {[%clk 0:00:03.3]} 36. Qxd5
{[%clk 0:00:09]} 36... Qb5 {[%clk 0:00:03.3]} 37. Qd4+ {[%clk 0:00:08.5]} 37...
Qb6 {[%clk 0:00:03.3]} 38. Rc5 {[%clk 0:00:08.6]} 38... a5 {[%clk 0:00:01.7]}
39. Rxa5+ {[%clk 0:00:08]} 39... Kb8 {[%clk 0:00:02.3]} 40. Rc5 {[%clk
0:00:07.9]} 40... Qc7+ {[%clk 0:00:03.2]} 41. Rxc7 {[%clk 0:00:07.6]} 41... Rxc7
{[%clk 0:00:04.1]} 42. h4 {[%clk 0:00:07.6]} 42... Kb7 {[%clk 0:00:03.7]} 43.
Qe5 {[%clk 0:00:07.3]} 43... Rc6 {[%clk 0:00:03.7]} 44. Kf4 {[%clk 0:00:07.4]}
44... h5 {[%clk 0:00:03.7]} 45. Kg5 {[%clk 0:00:07.5]} 45... Kb6 {[%clk
0:00:04.6]} 46. Qd4+ {[%clk 0:00:07.4]} 46... Kc7 {[%clk 0:00:04.3]} 47. Qd5
{[%clk 0:00:07.2]} 47... Rd6 {[%clk 0:00:04.5]} 48. Qxd6+ {[%clk 0:00:07.3]}
48... Kxd6 {[%clk 0:00:05.4]} 49. Kxg6 {[%clk 0:00:08.2]} 49... Ke5 {[%clk
0:00:06.3]} 50. Kxh5 {[%clk 0:00:08.4]} 50... f4 {[%clk 0:00:07.2]} 51. Kg5
{[%clk 0:00:08.8]} 51... f3 {[%clk 0:00:05.5]} 52. h5 {[%clk 0:00:08.2]} 52...
Kd5 {[%clk 0:00:06.4]} 53. Kg6 {[%clk 0:00:08.8]} 53... Kc4 {[%clk 0:00:07.3]}
54. h6 {[%clk 0:00:09.7]} 54... Kd3 {[%clk 0:00:08.2]} 55. h7 {[%clk 0:00:10.6]}
55... Ke2 {[%clk 0:00:09.1]} 56. h8=Q {[%clk 0:00:11]} 56... Kxf2 {[%clk
0:00:10]} 57. Qh6 {[%clk 0:00:10.7]} 57... Ke2 {[%clk 0:00:09.9]} 58. Kf5 {[%clk
0:00:10.9]} 58... f2 {[%clk 0:00:10.3]} 59. Qh1 {[%clk 0:00:08.6]} 59... Kxe3
{[%clk 0:00:08.7]} 60. Qxe4+ {[%clk 0:00:07.5]} 60... Kd2 {[%clk 0:00:08.8]} 61.
Qf3 {[%clk 0:00:05.7]} 61... Ke1 {[%clk 0:00:09]} 62. Qe3+ {[%clk 0:00:05.9]}
62... Kf1 {[%clk 0:00:09.4]} 63. Kg4 {[%clk 0:00:06]} 63... Kg2 {[%clk
0:00:09.6]} 64. Qe2 {[%clk 0:00:05.6]} 64... Kh1 {[%clk 0:00:09.6]} 65. Kg3
{[%clk 0:00:04.6]} 65... f1=N+ {[%clk 0:00:05.2]} 66. Qxf1# {[%clk 0:00:04.4]}
1-0

[Event "*** SCC Grand Prix: Titled Tuesday Blitz"]
[Site "Chess.com"]
[Date "2020.10.13"]
[Round "5"]
[White "K_A_S_T_O_R"]
[Black "GOGIEFF"]
[Result "0-1"]
[WhiteElo "2714"]
[BlackElo "2887"]
[TimeControl "180+1"]
[EndTime "10:57:26 PDT"]
[Termination "GOGIEFF won by resignation"]

1. e4 {[%clk 0:03:00.9]} 1... c5 {[%clk 0:02:59.6]} 2. Nf3 {[%clk 0:03:00.5]}
2... d6 {[%clk 0:03:00]} 3. d4 {[%clk 0:03:01]} 3... cxd4 {[%clk 0:03:00.9]} 4.
Nxd4 {[%clk 0:03:01.5]} 4... Nf6 {[%clk 0:03:01]} 5. Nc3 {[%clk 0:03:02.1]} 5...
a6 {[%clk 0:03:01.5]} 6. Bg5 {[%clk 0:03:02.6]} 6... Nbd7 {[%clk 0:03:01.3]} 7.
Bc4 {[%clk 0:03:01.9]} 7... Qa5 {[%clk 0:03:01.1]} 8. Qd2 {[%clk 0:02:51.9]}
8... e6 {[%clk 0:03:01.3]} 9. O-O-O {[%clk 0:02:44.9]} 9... Be7 {[%clk
0:03:01.2]} 10. f3 {[%clk 0:02:13.9]} 10... O-O {[%clk 0:02:51.1]} 11. Kb1
{[%clk 0:02:07.6]} 11... Qc7 {[%clk 0:02:36.3]} 12. Bxe6 {[%clk 0:02:01.1]}
12... fxe6 {[%clk 0:02:36.5]} 13. Nxe6 {[%clk 0:02:01.5]} 13... Qc4 {[%clk
0:02:36.5]} 14. Nxf8 {[%clk 0:02:02.1]} 14... Bxf8 {[%clk 0:02:31.5]} 15. b3
{[%clk 0:01:59.5]} 15... Qf7 {[%clk 0:02:23.3]} 16. Rhe1 {[%clk 0:01:51.4]}
16... b5 {[%clk 0:02:16.2]} 17. Bf4 {[%clk 0:01:44.8]} 17... Ne5 {[%clk
0:02:16]} 18. Qd4 {[%clk 0:01:38.5]} 18... Bb7 {[%clk 0:01:52.8]} 19. Be3 {[%clk
0:01:22.5]} 19... Rc8 {[%clk 0:01:44.8]} 20. Re2 {[%clk 0:01:16]} 20... Nc6
{[%clk 0:01:21.5]} 21. Qd2 {[%clk 0:01:14.2]} 21... Ne5 {[%clk 0:01:13.5]} 22.
Bd4 {[%clk 0:01:12]} 22... b4 {[%clk 0:01:08.3]} 23. Na4 {[%clk 0:01:09.1]}
23... a5 {[%clk 0:01:08.9]} 24. Ree1 {[%clk 0:01:03.9]} 24... Bc6 {[%clk
0:01:07.5]} 25. Nb6 {[%clk 0:00:53.9]} 25... Rb8 {[%clk 0:01:07.7]} 26. Bxe5
{[%clk 0:00:54.3]} 26... dxe5 {[%clk 0:01:06]} 27. Nc4 {[%clk 0:00:54.5]} 27...
Qe6 {[%clk 0:00:59.7]} 28. Qg5 {[%clk 0:00:48.9]} 28... Re8 {[%clk 0:00:55.4]}
29. Qe3 {[%clk 0:00:40.7]} 29... Bb5 {[%clk 0:00:52.6]} 30. Nb6 {[%clk
0:00:39.2]} 30... a4 {[%clk 0:00:44.7]} 31. bxa4 {[%clk 0:00:36]} 31... Bc6
{[%clk 0:00:44.5]} 32. Qb3 {[%clk 0:00:35.7]} 32... Kf7 {[%clk 0:00:41.5]} 33.
Nc4 {[%clk 0:00:33]} 33... Kg6 {[%clk 0:00:40]} 34. Ne3 {[%clk 0:00:29.4]} 34...
Bc5 {[%clk 0:00:33.7]} 35. Nf5 {[%clk 0:00:27.9]} 35... h6 {[%clk 0:00:33.5]}
36. Rd3 {[%clk 0:00:25]} 36... Kh7 {[%clk 0:00:33.4]} 37. Red1 {[%clk
0:00:25.1]} 37... g6 {[%clk 0:00:33.6]} 38. Nd6 {[%clk 0:00:25.2]} 38... Re7
{[%clk 0:00:33.5]} 39. Qxe6 {[%clk 0:00:19.4]} 39... Rxe6 {[%clk 0:00:33.3]} 40.
Nb5 {[%clk 0:00:20.3]} 40... g5 {[%clk 0:00:29.9]} 41. Kb2 {[%clk 0:00:20.2]}
41... g4 {[%clk 0:00:30.2]} 42. Kb3 {[%clk 0:00:20.7]} 42... gxf3 {[%clk
0:00:30.7]} 43. gxf3 {[%clk 0:00:21.4]} 43... Kg6 {[%clk 0:00:29.2]} 44. R1d2
{[%clk 0:00:20.1]} 44... Kg5 {[%clk 0:00:29.4]} 45. Rg2+ {[%clk 0:00:20.1]}
45... Kf4 {[%clk 0:00:29.6]} 46. Nc7 {[%clk 0:00:20.4]} 46... Re7 {[%clk
0:00:28.9]} 47. Nd5+ {[%clk 0:00:20.7]} 47... Bxd5+ {[%clk 0:00:28.7]} 48. exd5
{[%clk 0:00:21.6]} 48... Rd7 {[%clk 0:00:29]} 49. Kc4 {[%clk 0:00:21.4]} 49...
Bd4 {[%clk 0:00:29.2]} 50. Kxb4 {[%clk 0:00:19.5]} 50... Nxd5+ {[%clk
0:00:28.1]} 51. Kb5 {[%clk 0:00:19.9]} 51... Ne3 {[%clk 0:00:29]} 52. Re2 {[%clk
0:00:19]} 52... Kxf3 {[%clk 0:00:29.1]} 53. Red2 {[%clk 0:00:19.5]} 53... Rb7+
{[%clk 0:00:26.4]} 54. Kc6 {[%clk 0:00:19.2]} 54... Rg7 {[%clk 0:00:24.6]} 55.
a5 {[%clk 0:00:18.8]} 55... Ke4 {[%clk 0:00:22.8]} 56. c3 {[%clk 0:00:18.7]}
56... Ba7 {[%clk 0:00:20.5]} 57. Rd7 {[%clk 0:00:17.7]} 57... Rg6+ {[%clk
0:00:18]} 58. Kb5 {[%clk 0:00:17.8]} 58... Bb8 {[%clk 0:00:16.8]} 59. Rb7 {[%clk
0:00:17.6]} 59... Bd6 {[%clk 0:00:16.2]} 60. Rb6 {[%clk 0:00:17.2]} 60... Nd5
{[%clk 0:00:15.8]} 61. Rc6 {[%clk 0:00:17.3]} 61... Nc7+ {[%clk 0:00:12.1]} 62.
Kb6 {[%clk 0:00:16.4]} 62... Nd5+ {[%clk 0:00:12.3]} 63. Kb5 {[%clk 0:00:16.9]}
63... Nc7+ {[%clk 0:00:08.7]} 64. Kb6 {[%clk 0:00:16.8]} 64... Nd5+ {[%clk
0:00:08.9]} 65. Rxd5 {[%clk 0:00:17.5]} 65... Kxd5 {[%clk 0:00:08.7]} 66. c4+
{[%clk 0:00:17.9]} 66... Kd4 {[%clk 0:00:07.6]} 67. a6 {[%clk 0:00:15.9]} 67...
Bc5+ {[%clk 0:00:07.7]} 68. Kb5 {[%clk 0:00:16.4]} 68... Rxc6 {[%clk 0:00:08.3]}
69. Kxc6 {[%clk 0:00:16.6]} 69... e4 {[%clk 0:00:09.2]} 70. Kb7 {[%clk
0:00:15.3]} 70... e3 {[%clk 0:00:09.7]} 71. a7 {[%clk 0:00:16.2]} 71... Bxa7
{[%clk 0:00:09.9]} 72. Kxa7 {[%clk 0:00:16.3]} 72... e2 {[%clk 0:00:10.4]} 73.
c5 {[%clk 0:00:17.2]} 73... e1=Q {[%clk 0:00:10.9]} 74. c6 {[%clk 0:00:18.1]}
74... Qa5+ {[%clk 0:00:10.8]} 75. Kb7 {[%clk 0:00:18.1]} 75... Qb5+ {[%clk
0:00:11.4]} 76. Kc7 {[%clk 0:00:18.1]} 76... Kc5 {[%clk 0:00:12]} 0-1

[Event "*** SCC Grand Prix: Titled Tuesday Blitz"]
[Site "Chess.com"]
[Date "2020.10.13"]
[Round "5"]
[White "sergeikim"]
[Black "RobertoJBM"]
[Result "1-0"]
[WhiteElo "2528"]
[BlackElo "2706"]
[TimeControl "180+1"]
[EndTime "10:57:26 PDT"]
[Termination "sergeikim won on time"]

1. d4 {[%clk 0:03:00.9]} 1... d5 {[%clk 0:02:59.3]} 2. c4 {[%clk 0:03:00.8]}
2... c6 {[%clk 0:02:58.2]} 3. Nf3 {[%clk 0:02:59.3]} 3... Nf6 {[%clk 0:02:57.7]}
4. Qc2 {[%clk 0:02:59.3]} 4... g6 {[%clk 0:02:55.6]} 5. e3 {[%clk 0:02:58.8]}
5... Bg7 {[%clk 0:02:55.4]} 6. Bd3 {[%clk 0:02:58.6]} 6... O-O {[%clk
0:02:55.6]} 7. Nbd2 {[%clk 0:02:58.4]} 7... Nbd7 {[%clk 0:02:53]} 8. O-O {[%clk
0:02:56.2]} 8... Re8 {[%clk 0:02:51.4]} 9. b4 {[%clk 0:02:53.8]} 9... e5 {[%clk
0:02:47.9]} 10. dxe5 {[%clk 0:02:53.2]} 10... Nxe5 {[%clk 0:02:48.8]} 11. Nxe5
{[%clk 0:02:53.1]} 11... Rxe5 {[%clk 0:02:49.7]} 12. Bb2 {[%clk 0:02:50.6]}
12... Re8 {[%clk 0:02:47.2]} 13. Rad1 {[%clk 0:02:44.4]} 13... Qe7 {[%clk
0:02:45.4]} 14. Rfe1 {[%clk 0:02:41.8]} 14... Be6 {[%clk 0:02:44.7]} 15. h3
{[%clk 0:02:39.2]} 15... Qxb4 {[%clk 0:02:33.5]} 16. Rb1 {[%clk 0:02:35.2]}
16... Qe7 {[%clk 0:02:31.9]} 17. Nf3 {[%clk 0:02:30.3]} 17... dxc4 {[%clk
0:02:26.1]} 18. Bxc4 {[%clk 0:02:30]} 18... Bxc4 {[%clk 0:02:12.3]} 19. Qxc4
{[%clk 0:02:29]} 19... Rad8 {[%clk 0:02:10.8]} 20. Bd4 {[%clk 0:02:22]} 20... a6
{[%clk 0:01:41.4]} 21. a4 {[%clk 0:02:18.4]} 21... Ne4 {[%clk 0:01:38.4]} 22.
Bxg7 {[%clk 0:02:13.2]} 22... Kxg7 {[%clk 0:01:39.3]} 23. Red1 {[%clk
0:02:02.9]} 23... Rxd1+ {[%clk 0:01:13]} 24. Rxd1 {[%clk 0:02:00.7]} 24... Qe6
{[%clk 0:00:57.8]} 25. Qd4+ {[%clk 0:01:46.2]} 25... Qf6 {[%clk 0:00:56.4]} 26.
Qb6 {[%clk 0:01:44.5]} 26... Re7 {[%clk 0:00:55.7]} 27. Rd4 {[%clk 0:01:40.9]}
27... Nc3 {[%clk 0:00:52.4]} 28. Kh2 {[%clk 0:01:32.8]} 28... Nd5 {[%clk
0:00:51.2]} 29. Qc5 {[%clk 0:01:27.7]} 29... Re6 {[%clk 0:00:45.3]} 30. Rd3
{[%clk 0:01:15.3]} 30... h6 {[%clk 0:00:42.1]} 31. Rb3 {[%clk 0:01:14.3]} 31...
Re7 {[%clk 0:00:41.2]} 32. Kg1 {[%clk 0:00:59.5]} 32... b6 {[%clk 0:00:36.6]}
33. Qc4 {[%clk 0:00:56.5]} 33... a5 {[%clk 0:00:35.5]} 34. Nd4 {[%clk
0:00:54.5]} 34... Nb4 {[%clk 0:00:33.8]} 35. Rb1 {[%clk 0:00:50.3]} 35... Rd7
{[%clk 0:00:30.9]} 36. Rc1 {[%clk 0:00:49.2]} 36... Rd6 {[%clk 0:00:30.6]} 37.
Nf3 {[%clk 0:00:45.3]} 37... Qb2 {[%clk 0:00:26.8]} 38. Nd4 {[%clk 0:00:40.5]}
38... c5 {[%clk 0:00:24.7]} 39. Nf3 {[%clk 0:00:38]} 39... Qf6 {[%clk
0:00:23.8]} 40. Qb5 {[%clk 0:00:33.6]} 40... Qe6 {[%clk 0:00:23.8]} 41. Rf1
{[%clk 0:00:25.9]} 41... Qd7 {[%clk 0:00:24]} 42. Qc4 {[%clk 0:00:23.3]} 42...
Qxa4 {[%clk 0:00:21.4]} 43. Ne5 {[%clk 0:00:23.3]} 43... Re6 {[%clk 0:00:19.9]}
44. f4 {[%clk 0:00:20.5]} 44... Qc2 {[%clk 0:00:18]} 45. Qb5 {[%clk 0:00:18.2]}
45... Qe4 {[%clk 0:00:16.8]} 46. Qd7 {[%clk 0:00:16.8]} 46... Qxe3+ {[%clk
0:00:15.9]} 47. Kh2 {[%clk 0:00:15.4]} 47... Rxe5 {[%clk 0:00:10.2]} 48. fxe5
{[%clk 0:00:15.5]} 48... Qxe5+ {[%clk 0:00:11.1]} 49. Kh1 {[%clk 0:00:16]} 49...
Qd5 {[%clk 0:00:10.7]} 50. Qc7 {[%clk 0:00:13.8]} 50... c4 {[%clk 0:00:09]} 51.
Qxb6 {[%clk 0:00:13.1]} 51... c3 {[%clk 0:00:08.9]} 52. Qc7 {[%clk 0:00:13.6]}
52... c2 {[%clk 0:00:08.9]} 53. Qc3+ {[%clk 0:00:13.1]} 53... Kg8 {[%clk
0:00:09.4]} 54. Qc8+ {[%clk 0:00:12.1]} 54... Kh7 {[%clk 0:00:09.8]} 55. Qf8
{[%clk 0:00:09.8]} 55... c1=Q {[%clk 0:00:06.9]} 56. Rxc1 {[%clk 0:00:09.6]}
56... g5 {[%clk 0:00:06.2]} 57. Rf1 {[%clk 0:00:09.9]} 57... Kg6 {[%clk
0:00:05.6]} 58. Qg8+ {[%clk 0:00:10]} 58... Kh5 {[%clk 0:00:06.5]} 59. Qxf7+
{[%clk 0:00:09.5]} 59... Qxf7 {[%clk 0:00:06.7]} 60. Rxf7 {[%clk 0:00:10.4]}
60... a4 {[%clk 0:00:07.4]} 61. Ra7 {[%clk 0:00:10.9]} 61... Nd3 {[%clk
0:00:07.2]} 62. Rxa4 {[%clk 0:00:11.3]} 62... Ne5 {[%clk 0:00:07.7]} 63. Kh2
{[%clk 0:00:11.4]} 63... Nc6 {[%clk 0:00:07]} 64. Ra6 {[%clk 0:00:10.8]} 64...
Ne5 {[%clk 0:00:03.1]} 65. g4+ {[%clk 0:00:10.5]} 1-0